[Event "Titled Tuesday Blitz May 24 Early 2022"]
[White "Rostovtsev, Dmitry"]
[Black "Oparin, Grigoriy"]
[WhiteFideId "34278320"]
[BlackFideId "24125890"]
[WhiteElo "2274"]
[BlackElo "2665"]
[Result "1/2-1/2"]
[Round "07"]
[TimeControl "180+1"]
[Date "2022.05.24"]
[WhiteClock "0:00:07"]
[BlackClock "0:00:58"]

1. c4 {[%clk 0:03:00]}  Nf6 {[%clk 0:02:59]} 2. Nc3 {[%clk 0:02:59]}  e5 {[%clk 0:03:00]} 3. Nf3 {[%clk 0:02:59]}  Nc6 {[%clk 0:03:00]} 4. e4 {[%clk 0:02:58]}  Bb4 {[%clk 0:03:00]} 5. d3 {[%clk 0:02:57]}  d6 {[%clk 0:03:01]} 6. a3 {[%clk 0:02:53]}  Bc5 {[%clk 0:03:01]} 7. b4 {[%clk 0:02:54]}  Bb6 {[%clk 0:02:58]} 8. Na4 {[%clk 0:02:54]}  Bg4 {[%clk 0:02:56]} 9. Nxb6 {[%clk 0:02:52]}  axb6 {[%clk 0:02:56]} 10. Bb2 {[%clk 0:02:53]}  O-O {[%clk 0:02:54]} 11. Be2 {[%clk 0:02:48]}  Bxf3 {[%clk 0:02:51]} 12. Bxf3 {[%clk 0:02:48]}  Nd4 {[%clk 0:02:52]} 13. O-O {[%clk 0:02:38]}  c5 {[%clk 0:02:52]} 14. Be2 {[%clk 0:02:34]}  Nd7 {[%clk 0:02:39]} 15. f4 {[%clk 0:02:32]}  exf4 {[%clk 0:02:35]} 16. Rxf4 {[%clk 0:02:32]}  Ne5 {[%clk 0:02:36]} 17. Bxd4 {[%clk 0:02:21]}  cxd4 {[%clk 0:02:36]} 18. Qc1 {[%clk 0:02:03]}  b5 {[%clk 0:02:27]} 19. c5 {[%clk 0:01:35]}  Rc8 {[%clk 0:02:22]} 20. Rf5 {[%clk 0:01:34]}  Qe7 {[%clk 0:02:16]} 21. Qf4 {[%clk 0:01:29]}  f6 {[%clk 0:02:15]} 22. cxd6 {[%clk 0:01:29]}  Qxd6 {[%clk 0:02:16]} 23. Rf1 {[%clk 0:01:21]}  Rc2 {[%clk 0:02:04]} 24. Bd1 {[%clk 0:01:20]}  Rc3 {[%clk 0:02:04]} 25. Qg3 {[%clk 0:01:08]}  Rxd3 {[%clk 0:01:55]} 26. Bb3+ {[%clk 0:00:52]}  Kh8 {[%clk 0:01:55]} 27. Qxe5 {[%clk 0:00:49]}  Qxe5 {[%clk 0:01:50]} 28. Rxe5 {[%clk 0:00:49]}  Rxb3 {[%clk 0:01:47]} 29. Rxb5 {[%clk 0:00:50]}  Rxa3 {[%clk 0:01:44]} 30. Rxb7 {[%clk 0:00:49]}  Re3 {[%clk 0:01:45]} 31. Rd7 {[%clk 0:00:43]}  Rxe4 {[%clk 0:01:43]} 32. Rd1 {[%clk 0:00:42]}  d3 {[%clk 0:01:42]} 33. R7xd3 {[%clk 0:00:40]}  Rxb4 {[%clk 0:01:42]} 34. Rd8 {[%clk 0:00:40]}  Kg8 {[%clk 0:01:42]} 35. Rxf8+ {[%clk 0:00:40]}  Kxf8 {[%clk 0:01:43]} 36. h3 {[%clk 0:00:39]}  Kf7 {[%clk 0:01:42]} 37. Rd7+ {[%clk 0:00:39]}  Kg6 {[%clk 0:01:42]} 38. Kh2 {[%clk 0:00:40]}  h5 {[%clk 0:01:42]} 39. Ra7 {[%clk 0:00:37]}  Kh6 {[%clk 0:01:42]} 40. Rf7 {[%clk 0:00:35]}  h4 {[%clk 0:01:39]} 41. Rc7 {[%clk 0:00:35]}  g5 {[%clk 0:01:39]} 42. Rf7 {[%clk 0:00:33]}  Kg6 {[%clk 0:01:39]} 43. Rc7 {[%clk 0:00:34]}  Rb6 {[%clk 0:01:39]} 44. Rd7 {[%clk 0:00:33]}  f5 {[%clk 0:01:38]} 45. Rc7 {[%clk 0:00:34]}  Re6 {[%clk 0:01:38]} 46. Rb7 {[%clk 0:00:34]}  Kf6 {[%clk 0:01:39]} 47. Rc7 {[%clk 0:00:34]}  Rd6 {[%clk 0:01:39]} 48. Rh7 {[%clk 0:00:31]}  Ke5 {[%clk 0:01:39]} 49. Ra7 {[%clk 0:00:27]}  Rd4 {[%clk 0:01:38]} 50. Ra2 {[%clk 0:00:24]}  Rd1 {[%clk 0:01:34]} 51. Re2+ {[%clk 0:00:22]}  Kf6 {[%clk 0:01:34]} 52. Ra2 {[%clk 0:00:21]}  Rd3 {[%clk 0:01:30]} 53. Ra6+ {[%clk 0:00:19]}  Ke5 {[%clk 0:01:30]} 54. Ra2 {[%clk 0:00:20]}  Ke4 {[%clk 0:01:30]} 55. Rf2 {[%clk 0:00:19]}  g4 {[%clk 0:01:28]} 56. hxg4 {[%clk 0:00:19]}  fxg4 {[%clk 0:01:29]} 57. Rf8 {[%clk 0:00:19]}  Rd2 {[%clk 0:01:25]} 58. Rf7 {[%clk 0:00:18]}  h3 {[%clk 0:01:24]} 59. Kh1 {[%clk 0:00:19]}  Rxg2 {[%clk 0:01:14]} 60. Rf4+ {[%clk 0:00:15]}  Ke3 {[%clk 0:01:14]} 61. Rf3+ {[%clk 0:00:14]}  Ke2 {[%clk 0:01:14]} 62. Re3+ {[%clk 0:00:12]}  Kf1 {[%clk 0:01:14]} 63. Re1+ {[%clk 0:00:08]}  Kf2 {[%clk 0:01:14]} 64. Re2+ {[%clk 0:00:06]}  Kg3 {[%clk 0:01:11]} 65. Re3+ {[%clk 0:00:06]}  Kf4 {[%clk 0:01:09]} 66. Re4+ {[%clk 0:00:06]}  Kg5 {[%clk 0:01:09]} 67. Re5+ {[%clk 0:00:06]}  Kg6 {[%clk 0:01:08]} 68. Re6+ {[%clk 0:00:06]}  Kf5 {[%clk 0:01:09]} 69. Re5+ {[%clk 0:00:06]}  Kf4 {[%clk 0:01:09]} 70. Re4+ {[%clk 0:00:06]}  Kg5 {[%clk 0:01:10]} 71. Re5+ {[%clk 0:00:07]}  Kh4 {[%clk 0:01:10]} 72. Rh5+ {[%clk 0:00:07]}  Kg3 {[%clk 0:01:10]} 73. Rxh3+ {[%clk 0:00:07]}  Kf2 {[%clk 0:01:06]} 74. Rf3+ {[%clk 0:00:03]}  Ke2 {[%clk 0:00:59]} 75. Re3+ {[%clk 0:00:03]}  Kxe3 {[%clk 0:00:54]} 76. Kxg2 {[%clk 0:00:04]}  Kf4 {[%clk 0:00:54]} 77. Kf2 {[%clk 0:00:04]}  g3+ {[%clk 0:00:55]} 78. Kg2 {[%clk 0:00:05]}  Kg4 {[%clk 0:00:56]} 79. Kg1 {[%clk 0:00:05]}  Kf3 {[%clk 0:00:53]} 80. Kf1 {[%clk 0:00:06]}  Kf4 {[%clk 0:00:54]} 81. Kg2 {[%clk 0:00:06]}  Kg4 {[%clk 0:00:54]} 82. Kg1 {[%clk 0:00:06]}  Kg5 {[%clk 0:00:54]} 83. Kg2 {[%clk 0:00:07]}  Kh4 {[%clk 0:00:55]} 84. Kg1 {[%clk 0:00:06]}  Kh3 {[%clk 0:00:56]} 85. Kh1 {[%clk 0:00:06]}  g2+ {[%clk 0:00:57]} 86. Kg1 {[%clk 0:00:07]}  Kg3 {[%clk 0:00:58]} 1/2-1/2


[Site "https://www.chess.com"]

[Event "Titled Tuesday Blitz May 24 Early 2022"]
[White "Samunenkov, Ihor"]
[Black "Przybylski, Wojciech"]
[WhiteFideId "14187086"]
[BlackFideId "1117599"]
[WhiteElo "2409"]
[BlackElo "2133"]
[Result "1/2-1/2"]
[Round "07"]
[TimeControl "180+1"]
[Date "2022.05.25"]
[WhiteClock "0:00:02"]
[BlackClock "0:00:05"]

1. e4 {[%clk 0:03:00]}  e5 {[%clk 0:02:51]} 2. Nf3 {[%clk 0:03:00]}  Nc6 {[%clk 0:02:50]} 3. Bb5 {[%clk 0:03:01]}  Nf6 {[%clk 0:02:49]} 4. O-O {[%clk 0:03:00]}  Nxe4 {[%clk 0:02:49]} 5. Re1 {[%clk 0:03:00]}  Nd6 {[%clk 0:02:49]} 6. Nxe5 {[%clk 0:02:59]}  Be7 {[%clk 0:02:48]} 7. Bf1 {[%clk 0:02:59]}  O-O {[%clk 0:02:43]} 8. d4 {[%clk 0:02:58]}  Nf5 {[%clk 0:02:43]} 9. Nf3 {[%clk 0:02:58]}  d5 {[%clk 0:02:42]} 10. Nc3 {[%clk 0:02:55]}  Nh4 {[%clk 0:02:38]} 11. Nxh4 {[%clk 0:02:21]}  Bxh4 {[%clk 0:02:39]} 12. Ne2 {[%clk 0:02:22]}  Re8 {[%clk 0:02:27]} 13. c3 {[%clk 0:02:17]}  Bf5 {[%clk 0:02:22]} 14. Nf4 {[%clk 0:02:12]}  Rxe1 {[%clk 0:02:18]} 15. Qxe1 {[%clk 0:02:12]}  Qd7 {[%clk 0:02:17]} 16. g3 {[%clk 0:01:45]}  Bg5 {[%clk 0:02:14]} 17. Bg2 {[%clk 0:01:37]}  Re8 {[%clk 0:02:12]} 18. Qf1 {[%clk 0:01:22]}  Be4 {[%clk 0:02:08]} 19. Bxe4 {[%clk 0:01:20]}  dxe4 {[%clk 0:02:00]} 20. Qb5 {[%clk 0:01:06]}  Bxf4 {[%clk 0:01:51]} 21. Bxf4 {[%clk 0:01:05]}  Qc8 {[%clk 0:01:45]} 22. Re1 {[%clk 0:01:02]}  Re7 {[%clk 0:01:12]} 23. Qd5 {[%clk 0:00:40]}  Qe8 {[%clk 0:01:09]} 24. b4 {[%clk 0:00:39]}  a6 {[%clk 0:01:06]} 25. a4 {[%clk 0:00:38]}  Nd8 {[%clk 0:00:57]} 26. Bg5 {[%clk 0:00:35]}  c6 {[%clk 0:00:45]} 27. Qf5 {[%clk 0:00:19]}  Re6 {[%clk 0:00:20]} 28. c4 {[%clk 0:00:19]}  g6 {[%clk 0:00:19]} 29. Qf4 {[%clk 0:00:16]}  Qd7 {[%clk 0:00:18]} 30. Bf6 {[%clk 0:00:11]}  b5 {[%clk 0:00:10]} 31. axb5 {[%clk 0:00:10]}  axb5 {[%clk 0:00:10]} 32. cxb5 {[%clk 0:00:09]}  cxb5 {[%clk 0:00:11]} 33. Rxe4 {[%clk 0:00:10]}  Nc6 {[%clk 0:00:09]} 34. Rxe6 {[%clk 0:00:10]}  Qxe6 {[%clk 0:00:08]} 35. d5 {[%clk 0:00:04]}  Qxd5 {[%clk 0:00:07]} 36. Qh6 {[%clk 0:00:05]}  Qd1+ {[%clk 0:00:06]} 37. Kg2 {[%clk 0:00:05]}  Qd5+ {[%clk 0:00:06]} 38. f3 {[%clk 0:00:06]}  Qa2+ {[%clk 0:00:05]} 39. Kg1 {[%clk 0:00:04]}  Qb1+ {[%clk 0:00:05]} 40. Kf2 {[%clk 0:00:04]}  Qa2+ {[%clk 0:00:05]} 41. Kg1 {[%clk 0:00:02]}  Qb1+ {[%clk 0:00:05]} 42. Kg2 {[%clk 0:00:02]}  Qa2+ {[%clk 0:00:05]} 43. Kg1 {[%clk 0:00:02]} 1/2-1/2


[Site "https://www.chess.com"]

[Event "Titled Tuesday Blitz May 24 Early 2022"]
[White "Sarkar, Justin"]
[Black "Sargsyan, Anna M."]
[WhiteFideId "2010011"]
[BlackFideId "13308130"]
[WhiteElo "2020"]
[BlackElo "2271"]
[Result "0-1"]
[Round "07"]
[TimeControl "180+1"]
[Date "2022.05.25"]
[WhiteClock "0:00:02"]
[BlackClock "0:01:43"]

1. d4 {[%clk 0:02:53]}  d5 {[%clk 0:02:58]} 2. c4 {[%clk 0:02:52]}  c5 {[%clk 0:02:58]} 3. cxd5 {[%clk 0:02:48]}  Qxd5 {[%clk 0:02:54]} 4. Nf3 {[%clk 0:02:47]}  cxd4 {[%clk 0:02:51]} 5. Nc3 {[%clk 0:02:47]}  Qa5 {[%clk 0:02:48]} 6. Nxd4 {[%clk 0:02:46]}  Nf6 {[%clk 0:02:46]} 7. g3 {[%clk 0:02:39]}  e5 {[%clk 0:02:46]} 8. Nb5 {[%clk 0:02:28]}  Nc6 {[%clk 0:02:22]} 9. Bg2 {[%clk 0:02:20]}  Be6 {[%clk 0:02:11]} 10. Nd6+ {[%clk 0:02:04]}  Bxd6 {[%clk 0:02:10]} 11. Qxd6 {[%clk 0:02:03]}  Nd4 {[%clk 0:01:53]} 12. Bxb7 {[%clk 0:01:27]}  Rd8 {[%clk 0:01:50]} 13. Bc6+ {[%clk 0:01:19]}  Bd7 {[%clk 0:01:50]} 14. Bxd7+ {[%clk 0:00:25]}  Rxd7 {[%clk 0:01:51]} 15. Qb8+ {[%clk 0:00:24]}  Rd8 {[%clk 0:01:46]} 16. Qb7 {[%clk 0:00:21]}  Nc2+ {[%clk 0:01:46]} 17. Kf1 {[%clk 0:00:22]}  Nxa1 {[%clk 0:01:46]} 18. Kg2 {[%clk 0:00:16]}  O-O {[%clk 0:01:44]} 19. Bg5 {[%clk 0:00:10]}  Nc2 {[%clk 0:01:42]} 20. Bxf6 {[%clk 0:00:07]}  gxf6 {[%clk 0:01:43]} 21. Ne4 {[%clk 0:00:03]}  Qb6 {[%clk 0:01:43]} 22. Qxb6 {[%clk 0:00:01]}  axb6 {[%clk 0:01:43]} 23. Nxf6+ {[%clk 0:00:02]}  Kg7 {[%clk 0:01:43]} 0-1


[Site "https://www.chess.com"]

[Event "Titled Tuesday Blitz May 24 Early 2022"]
[White "Skliarov, Viktor"]
[Black "Hirneise, Jens"]
[WhiteFideId "14106736"]
[BlackFideId "24614734"]
[WhiteElo "2229"]
[BlackElo "2359"]
[Result "1-0"]
[Round "07"]
[TimeControl "180+1"]
[Date "2022.05.25"]
[WhiteClock "0:00:03"]
[BlackClock "0:00:01"]

1. e4 {[%clk 0:02:59]}  c5 {[%clk 0:02:57]} 2. Nf3 {[%clk 0:03:00]}  Nc6 {[%clk 0:02:53]} 3. Bb5 {[%clk 0:02:59]}  e6 {[%clk 0:02:51]} 4. Bxc6 {[%clk 0:02:59]}  bxc6 {[%clk 0:02:51]} 5. d3 {[%clk 0:03:00]}  Ne7 {[%clk 0:02:51]} 6. Qe2 {[%clk 0:03:00]}  d5 {[%clk 0:02:37]} 7. O-O {[%clk 0:02:57]}  Ng6 {[%clk 0:02:34]} 8. e5 {[%clk 0:02:55]}  Be7 {[%clk 0:02:32]} 9. Nc3 {[%clk 0:02:51]}  O-O {[%clk 0:02:29]} 10. Na4 {[%clk 0:02:51]}  c4 {[%clk 0:02:23]} 11. dxc4 {[%clk 0:02:47]}  Ba6 {[%clk 0:02:22]} 12. b3 {[%clk 0:02:45]}  dxc4 {[%clk 0:02:18]} 13. Rd1 {[%clk 0:01:51]}  cxb3 {[%clk 0:02:06]} 14. Qe1 {[%clk 0:01:35]}  Qb8 {[%clk 0:01:52]} 15. axb3 {[%clk 0:01:30]}  Rd8 {[%clk 0:01:52]} 16. Bb2 {[%clk 0:01:09]}  Bb5 {[%clk 0:01:47]} 17. Qe4 {[%clk 0:01:01]}  Bxa4 {[%clk 0:01:32]} 18. Qxa4 {[%clk 0:01:00]}  Rxd1+ {[%clk 0:01:23]} 19. Rxd1 {[%clk 0:00:59]}  Qb7 {[%clk 0:01:17]} 20. h4 {[%clk 0:00:48]}  Bc5 {[%clk 0:01:13]} 21. Qc4 {[%clk 0:00:34]}  Bb6 {[%clk 0:01:08]} 22. Ba3 {[%clk 0:00:30]}  Ne7 {[%clk 0:00:54]} 23. Bxe7 {[%clk 0:00:30]}  Qxe7 {[%clk 0:00:54]} 24. Qxc6 {[%clk 0:00:30]}  Qf8 {[%clk 0:00:50]} 25. Rd7 {[%clk 0:00:25]}  Rc8 {[%clk 0:00:41]} 26. Qe4 {[%clk 0:00:25]}  h6 {[%clk 0:00:36]} 27. c4 {[%clk 0:00:23]}  Qa3 {[%clk 0:00:30]} 28. Rd3 {[%clk 0:00:22]}  a5 {[%clk 0:00:24]} 29. g3 {[%clk 0:00:20]}  Qc5 {[%clk 0:00:20]} 30. Rd2 {[%clk 0:00:16]}  Qb4 {[%clk 0:00:19]} 31. Rc2 {[%clk 0:00:10]}  a4 {[%clk 0:00:18]} 32. bxa4 {[%clk 0:00:10]}  Qxa4 {[%clk 0:00:19]} 33. Kg2 {[%clk 0:00:10]}  Bc5 {[%clk 0:00:17]} 34. h5 {[%clk 0:00:10]}  Rd8 {[%clk 0:00:15]} 35. Rb2 {[%clk 0:00:07]}  Qa1 {[%clk 0:00:14]} 36. Rb1 {[%clk 0:00:08]}  Qa2 {[%clk 0:00:13]} 37. Rb7 {[%clk 0:00:05]}  Qxf2+ {[%clk 0:00:13]} 38. Kh3 {[%clk 0:00:05]}  Qf1+ {[%clk 0:00:11]} 39. Kg4 {[%clk 0:00:06]}  Qd3 {[%clk 0:00:09]} 40. Qxd3 {[%clk 0:00:05]}  Rxd3 {[%clk 0:00:10]} 41. Rb8+ {[%clk 0:00:05]}  Kh7 {[%clk 0:00:09]} 42. Rc8 {[%clk 0:00:06]}  Bb4 {[%clk 0:00:07]} 43. c5 {[%clk 0:00:05]}  Rc3 {[%clk 0:00:05]} 44. c6 {[%clk 0:00:06]}  Rc4+ {[%clk 0:00:06]} 45. Kh3 {[%clk 0:00:06]}  Ba5 {[%clk 0:00:05]} 46. g4 {[%clk 0:00:05]}  g6 {[%clk 0:00:05]} 47. Kg2 {[%clk 0:00:04]}  gxh5 {[%clk 0:00:05]} 48. gxh5 {[%clk 0:00:05]}  Kg7 {[%clk 0:00:05]} 49. Kf2 {[%clk 0:00:05]}  f6 {[%clk 0:00:06]} 50. Ke2 {[%clk 0:00:04]}  Rc5 {[%clk 0:00:04]} 51. exf6+ {[%clk 0:00:04]}  Kxf6 {[%clk 0:00:03]} 52. Kd3 {[%clk 0:00:04]}  Rxh5 {[%clk 0:00:03]} 53. Nd4 {[%clk 0:00:04]}  Rh3+ {[%clk 0:00:01]} 54. Kc4 {[%clk 0:00:05]}  Rh5 {[%clk 0:00:02]} 55. Nb5 {[%clk 0:00:04]}  Bb6 {[%clk 0:00:01]} 56. c7 {[%clk 0:00:05]}  Rc5+ {[%clk 0:00:01]} 57. Kb4 {[%clk 0:00:05]}  Bxc7 {[%clk 0:00:02]} 58. Kxc5 {[%clk 0:00:04]}  Bf4 {[%clk 0:00:02]} 59. Nd6 {[%clk 0:00:04]}  h5 {[%clk 0:00:02]} 60. Rf8+ {[%clk 0:00:04]}  Kg5 {[%clk 0:00:03]} 61. Ne4+ {[%clk 0:00:04]}  Kg4 {[%clk 0:00:03]} 62. Nf6+ {[%clk 0:00:04]}  Kh4 {[%clk 0:00:01]} 63. Kc4 {[%clk 0:00:03]}  Bg5 {[%clk 0:00:01]} 64. Ne4 {[%clk 0:00:03]}  Be3 {[%clk 0:00:01]} 65. Rf7 {[%clk 0:00:03]} 1-0


[Site "https://www.chess.com"]

[Event "Titled Tuesday Blitz May 24 Early 2022"]
[White "Skuhala, Barbara"]
[Black "Shuvalov, Evgenij"]
[WhiteFideId "14605465"]
[BlackFideId "4187237"]
[WhiteElo "2155"]
[BlackElo "2053"]
[Result "1/2-1/2"]
[Round "07"]
[TimeControl "180+1"]
[Date "2022.05.25"]
[WhiteClock "0:00:48"]
[BlackClock "0:01:11"]

1. e4 {[%clk 0:03:00]}  e6 {[%clk 0:02:58]} 2. d4 {[%clk 0:03:00]}  d5 {[%clk 0:02:58]} 3. Bd3 {[%clk 0:03:00]}  c5 {[%clk 0:02:57]} 4. exd5 {[%clk 0:02:59]}  exd5 {[%clk 0:02:58]} 5. dxc5 {[%clk 0:03:00]}  Bxc5 {[%clk 0:02:57]} 6. Nf3 {[%clk 0:03:00]}  Nf6 {[%clk 0:02:57]} 7. O-O {[%clk 0:02:58]}  O-O {[%clk 0:02:57]} 8. c4 {[%clk 0:02:58]}  dxc4 {[%clk 0:02:48]} 9. Bxc4 {[%clk 0:02:58]}  Qxd1 {[%clk 0:02:49]} 10. Rxd1 {[%clk 0:02:58]}  Bg4 {[%clk 0:02:48]} 11. Nc3 {[%clk 0:02:56]}  Nc6 {[%clk 0:02:46]} 12. Be3 {[%clk 0:02:51]}  Bxe3 {[%clk 0:02:45]} 13. fxe3 {[%clk 0:02:51]}  Rfe8 {[%clk 0:02:42]} 14. Kf2 {[%clk 0:02:48]}  Be6 {[%clk 0:02:36]} 15. Bxe6 {[%clk 0:02:47]}  Rxe6 {[%clk 0:02:37]} 16. Nd5 {[%clk 0:02:44]}  Nxd5 {[%clk 0:02:17]} 17. Rxd5 {[%clk 0:02:43]}  Rae8 {[%clk 0:02:17]} 18. Re1 {[%clk 0:02:41]}  f6 {[%clk 0:02:12]} 19. a3 {[%clk 0:02:41]}  R6e7 {[%clk 0:02:07]} 20. h3 {[%clk 0:02:36]}  Kf7 {[%clk 0:02:05]} 21. Re2 {[%clk 0:02:35]}  Rd8 {[%clk 0:02:01]} 22. Rxd8 {[%clk 0:02:33]}  Nxd8 {[%clk 0:02:02]} 23. Nd4 {[%clk 0:02:33]}  g6 {[%clk 0:01:58]} 24. Rc2 {[%clk 0:02:31]}  Ne6 {[%clk 0:01:54]} 25. Nxe6 {[%clk 0:02:31]}  Kxe6 {[%clk 0:01:54]} 26. Rc8 {[%clk 0:02:29]}  a6 {[%clk 0:01:53]} 27. Kf3 {[%clk 0:02:29]}  f5 {[%clk 0:01:53]} 28. Kf4 {[%clk 0:02:25]}  Kd5 {[%clk 0:01:48]} 29. Rb8 {[%clk 0:02:20]}  Kc4 {[%clk 0:01:47]} 30. Rd8 {[%clk 0:02:16]}  Kb3 {[%clk 0:01:47]} 31. Rd2 {[%clk 0:02:16]}  Rc7 {[%clk 0:01:42]} 32. g4 {[%clk 0:02:15]}  fxg4 {[%clk 0:01:34]} 33. hxg4 {[%clk 0:02:15]}  h5 {[%clk 0:01:35]} 34. gxh5 {[%clk 0:02:15]}  gxh5 {[%clk 0:01:36]} 35. e4 {[%clk 0:02:15]}  h4 {[%clk 0:01:32]} 36. e5 {[%clk 0:02:15]}  h3 {[%clk 0:01:31]} 37. Kf5 {[%clk 0:02:15]}  Rc2 {[%clk 0:01:31]} 38. Rd7 {[%clk 0:02:13]}  h2 {[%clk 0:01:29]} 39. Rh7 {[%clk 0:02:12]}  Rf2+ {[%clk 0:01:27]} 40. Ke6 {[%clk 0:02:09]}  b5 {[%clk 0:01:27]} 41. Kd5 {[%clk 0:02:03]}  Kxb2 {[%clk 0:01:26]} 42. e6 {[%clk 0:02:03]}  Kxa3 {[%clk 0:01:25]} 43. e7 {[%clk 0:02:01]}  Re2 {[%clk 0:01:25]} 44. Kd6 {[%clk 0:02:01]}  b4 {[%clk 0:01:24]} 45. Rxh2 {[%clk 0:01:57]}  Rxe7 {[%clk 0:01:21]} 46. Kxe7 {[%clk 0:01:56]}  b3 {[%clk 0:01:21]} 47. Kd6 {[%clk 0:01:53]}  a5 {[%clk 0:01:17]} 48. Kc5 {[%clk 0:01:51]}  a4 {[%clk 0:01:17]} 49. Rh3 {[%clk 0:01:40]}  Ka2 {[%clk 0:01:16]} 50. Kb4 {[%clk 0:01:38]}  b2 {[%clk 0:01:11]} 51. Ra3+ {[%clk 0:00:56]}  Kb1 {[%clk 0:01:11]} 52. Kxa4 {[%clk 0:00:47]}  Kc2 {[%clk 0:01:10]} 53. Rb3 {[%clk 0:00:47]}  b1=Q {[%clk 0:01:10]} 54. Rxb1 {[%clk 0:00:48]}  Kxb1 {[%clk 0:01:11]} 1/2-1/2


[Site "https://www.chess.com"]

[Event "Titled Tuesday Blitz May 24 Early 2022"]
[White "Skytte, Rasmus"]
[Black "Galiana Fernandez, Adrian"]
[WhiteFideId "1404210"]
[BlackFideId "32010150"]
[WhiteElo "2430"]
[BlackElo "2133"]
[Result "0-1"]
[Round "07"]
[TimeControl "180+1"]
[Date "2022.05.25"]
[WhiteClock "0:00:35"]
[BlackClock "0:00:47"]

1. Nf3 {[%clk 0:02:55]}  d5 {[%clk 0:02:56]} 2. b3 {[%clk 0:02:53]}  Bg4 {[%clk 0:02:54]} 3. e3 {[%clk 0:02:45]}  e5 {[%clk 0:02:52]} 4. Be2 {[%clk 0:02:45]}  Nc6 {[%clk 0:02:45]} 5. O-O {[%clk 0:02:44]}  e4 {[%clk 0:02:37]} 6. Ne1 {[%clk 0:02:39]}  Bxe2 {[%clk 0:02:33]} 7. Qxe2 {[%clk 0:02:40]}  Qd7 {[%clk 0:02:30]} 8. Bb2 {[%clk 0:02:41]}  O-O-O {[%clk 0:02:25]} 9. f3 {[%clk 0:02:35]}  f5 {[%clk 0:02:24]} 10. fxe4 {[%clk 0:02:35]}  fxe4 {[%clk 0:02:19]} 11. Nc3 {[%clk 0:02:27]}  Nf6 {[%clk 0:02:17]} 12. Qb5 {[%clk 0:02:24]}  Bd6 {[%clk 0:02:05]} 13. Kh1 {[%clk 0:02:10]}  a6 {[%clk 0:01:52]} 14. Qe2 {[%clk 0:02:05]}  Rdf8 {[%clk 0:01:38]} 15. g3 {[%clk 0:02:00]}  Qh3 {[%clk 0:01:07]} 16. Qg2 {[%clk 0:01:50]}  Qh5 {[%clk 0:01:05]} 17. Qe2 {[%clk 0:01:35]}  Ng4 {[%clk 0:00:58]} 18. Rxf8+ {[%clk 0:01:30]}  Rxf8 {[%clk 0:00:56]} 19. Kg1 {[%clk 0:00:38]}  Rf2 {[%clk 0:00:51]} 20. Qxf2 {[%clk 0:00:37]}  Nxf2 {[%clk 0:00:48]} 21. Kxf2 {[%clk 0:00:38]}  Qxh2+ {[%clk 0:00:47]} 22. Ng2 {[%clk 0:00:38]}  Bxg3+ {[%clk 0:00:47]} 23. Kf1 {[%clk 0:00:36]}  Qh1+ {[%clk 0:00:47]} 24. Ke2 {[%clk 0:00:34]}  Qxg2+ {[%clk 0:00:47]} 25. Kd1 {[%clk 0:00:35]}  Qf1# {[%clk 0:00:47]} 0-1


[Site "https://www.chess.com"]

[Event "Titled Tuesday Blitz May 24 Early 2022"]
[White "Sovetbekova, Nurai"]
[Black "Wadsworth, Matthew J"]
[WhiteFideId "13801910"]
[BlackFideId "415804"]
[WhiteElo "1660"]
[BlackElo "2294"]
[Result "0-1"]
[Round "07"]
[TimeControl "180+1"]
[Date "2022.05.25"]
[WhiteClock "0:00:01"]
[BlackClock "0:00:17"]

1. d4 {[%clk 0:02:55]}  Nf6 {[%clk 0:02:59]} 2. c4 {[%clk 0:02:52]}  c5 {[%clk 0:02:58]} 3. d5 {[%clk 0:02:49]}  e6 {[%clk 0:02:57]} 4. Nc3 {[%clk 0:02:48]}  exd5 {[%clk 0:02:56]} 5. cxd5 {[%clk 0:02:49]}  d6 {[%clk 0:02:57]} 6. Nf3 {[%clk 0:02:43]}  g6 {[%clk 0:02:56]} 7. g3 {[%clk 0:02:43]}  Bg7 {[%clk 0:02:56]} 8. Bg2 {[%clk 0:02:44]}  O-O {[%clk 0:02:53]} 9. O-O {[%clk 0:02:44]}  a6 {[%clk 0:02:53]} 10. a4 {[%clk 0:02:44]}  Nbd7 {[%clk 0:02:53]} 11. Bf4 {[%clk 0:02:43]}  Qe7 {[%clk 0:02:51]} 12. Qc2 {[%clk 0:02:36]}  Nh5 {[%clk 0:02:48]} 13. Bg5 {[%clk 0:02:32]}  Bf6 {[%clk 0:02:38]} 14. Bxf6 {[%clk 0:02:29]}  Qxf6 {[%clk 0:02:38]} 15. Ne4 {[%clk 0:02:21]}  Qe7 {[%clk 0:02:30]} 16. Nfd2 {[%clk 0:02:18]}  f5 {[%clk 0:02:26]} 17. Nc3 {[%clk 0:02:11]}  f4 {[%clk 0:02:16]} 18. Nf3 {[%clk 0:02:03]}  Ne5 {[%clk 0:02:14]} 19. Nxe5 {[%clk 0:01:48]}  Qxe5 {[%clk 0:02:13]} 20. Qe4 {[%clk 0:01:47]}  Re8 {[%clk 0:02:08]} 21. Rfe1 {[%clk 0:01:31]}  Bf5 {[%clk 0:01:59]} 22. Qxe5 {[%clk 0:01:30]}  Rxe5 {[%clk 0:01:57]} 23. Rad1 {[%clk 0:01:21]}  Rae8 {[%clk 0:01:51]} 24. gxf4 {[%clk 0:01:16]}  Nxf4 {[%clk 0:01:50]} 25. e3 {[%clk 0:01:06]}  Bc2 {[%clk 0:01:23]} 26. Rd2 {[%clk 0:00:52]}  Nxg2 {[%clk 0:01:10]} 27. Kxg2 {[%clk 0:00:47]}  Rg5+ {[%clk 0:01:10]} 28. Kf3 {[%clk 0:00:39]}  Bf5 {[%clk 0:01:08]} 29. h4 {[%clk 0:00:30]}  Rg4 {[%clk 0:01:03]} 30. e4 {[%clk 0:00:24]}  Rxh4 {[%clk 0:00:59]} 31. Re3 {[%clk 0:00:21]}  Rh3+ {[%clk 0:00:57]} 32. Ke2 {[%clk 0:00:20]}  Rxe3+ {[%clk 0:00:57]} 33. Kxe3 {[%clk 0:00:21]}  Bd7 {[%clk 0:00:56]} 34. a5 {[%clk 0:00:20]}  g5 {[%clk 0:00:54]} 35. Rd1 {[%clk 0:00:20]}  Kg7 {[%clk 0:00:54]} 36. Rg1 {[%clk 0:00:20]}  Kf6 {[%clk 0:00:49]} 37. Ne2 {[%clk 0:00:18]}  h5 {[%clk 0:00:48]} 38. Rh1 {[%clk 0:00:16]}  h4 {[%clk 0:00:47]} 39. f4 {[%clk 0:00:16]}  Bf5 {[%clk 0:00:40]} 40. fxg5+ {[%clk 0:00:15]}  Kxg5 {[%clk 0:00:40]} 41. Rg1+ {[%clk 0:00:15]}  Kf6 {[%clk 0:00:34]} 42. Rf1 {[%clk 0:00:14]}  Rxe4+ {[%clk 0:00:33]} 43. Kd2 {[%clk 0:00:13]}  Rb4 {[%clk 0:00:30]} 44. Kc3 {[%clk 0:00:13]}  Ke5 {[%clk 0:00:22]} 45. Nc1 {[%clk 0:00:11]}  Rg4 {[%clk 0:00:22]} 46. Ne2 {[%clk 0:00:10]}  h3 {[%clk 0:00:20]} 47. Ng1 {[%clk 0:00:09]}  h2 {[%clk 0:00:19]} 48. Nf3+ {[%clk 0:00:10]}  Kxd5 {[%clk 0:00:19]} 49. Nxh2 {[%clk 0:00:11]}  Rg3+ {[%clk 0:00:19]} 50. Rf3 {[%clk 0:00:06]}  Rxf3+ {[%clk 0:00:19]} 51. Nxf3 {[%clk 0:00:07]}  Kc6 {[%clk 0:00:17]} 52. Nd2 {[%clk 0:00:07]}  d5 {[%clk 0:00:17]} 53. Nf3 {[%clk 0:00:07]}  d4+ {[%clk 0:00:17]} 54. Kc4 {[%clk 0:00:07]}  Be6+ {[%clk 0:00:17]} 55. Kd3 {[%clk 0:00:07]}  Kb5 {[%clk 0:00:18]} 56. Ne5 {[%clk 0:00:07]}  Bf5+ {[%clk 0:00:18]} 57. Kd2 {[%clk 0:00:06]}  Kxa5 {[%clk 0:00:17]} 58. Nc4+ {[%clk 0:00:06]}  Kb4 {[%clk 0:00:17]} 59. Nd6 {[%clk 0:00:07]}  Bg6 {[%clk 0:00:16]} 60. Nxb7 {[%clk 0:00:07]}  c4 {[%clk 0:00:16]} 61. Nd6 {[%clk 0:00:07]}  a5 {[%clk 0:00:16]} 62. Nb7 {[%clk 0:00:05]}  a4 {[%clk 0:00:15]} 63. Nd6 {[%clk 0:00:05]}  c3+ {[%clk 0:00:16]} 64. bxc3+ {[%clk 0:00:06]}  dxc3+ {[%clk 0:00:16]} 65. Kc1 {[%clk 0:00:06]}  a3 {[%clk 0:00:17]} 66. Nb7 {[%clk 0:00:01]}  a2 {[%clk 0:00:17]} 67. Nc5 {[%clk 0:00:01]}  a1=Q# {[%clk 0:00:17]} 0-1


[Site "https://www.chess.com"]